[Event "Late-Titled-Tuesday-Blitz-July-09-2024"]
[Site "Chess.com"]
[Date "2024.07.09"]
[Round "2"]
[White "ChessLebaneseSalah"]
[Black "Horokoskii"]
[Result "0-1"]
[WhiteElo "2441"]
[BlackElo "2116"]
[TimeControl "180+1"]
[EndTime "14:18:33 PDT"]
[Termination "Horokoskii won on time"]

1. e4 {[%clk 0:03:00.9]} 1... c5 {[%clk 0:02:54.8]} 2. Nf3 {[%clk 0:03:00.3]}
2... d6 {[%clk 0:02:54.2]} 3. d4 {[%clk 0:03:00.3]} 3... cxd4 {[%clk 0:02:55.1]}
4. Nxd4 {[%clk 0:03:00.7]} 4... Nf6 {[%clk 0:02:55]} 5. Nc3 {[%clk 0:03:00.7]}
5... Nc6 {[%clk 0:02:53.7]} 6. Nd5 {[%clk 0:02:54.3]} 6... Nxd5 {[%clk
0:02:39.9]} 7. exd5 {[%clk 0:02:53.3]} 7... Qa5+ {[%clk 0:02:35.4]} 8. Bd2
{[%clk 0:02:52.1]} 8... Qxd5 {[%clk 0:02:33.3]} 9. Nb5 {[%clk 0:02:52.1]} 9...
Qe5+ {[%clk 0:02:17.5]} 10. Be2 {[%clk 0:02:43.3]} 10... Kd8 {[%clk 0:02:12.9]}
11. O-O {[%clk 0:02:32.1]} 11... Be6 {[%clk 0:02:01.2]} 12. Bc3 {[%clk
0:02:29.8]} 12... Qd5 {[%clk 0:01:59.9]} 13. Bf3 {[%clk 0:02:18.5]} 13... Qxd1
{[%clk 0:01:58.9]} 14. Raxd1 {[%clk 0:02:19.4]} 14... a6 {[%clk 0:01:57.9]} 15.
Nd4 {[%clk 0:02:18]} 15... Nxd4 {[%clk 0:01:57.5]} 16. Rxd4 {[%clk 0:02:12.3]}
16... Rb8 {[%clk 0:01:53.9]} 17. Rb4 {[%clk 0:01:56.7]} 17... b5 {[%clk
0:01:51.2]} 18. a4 {[%clk 0:01:54.6]} 18... Bd7 {[%clk 0:01:42.7]} 19. axb5
{[%clk 0:01:24.1]} 19... Rxb5 {[%clk 0:01:31.9]} 20. Ra1 {[%clk 0:01:19]} 20...
Rxb4 {[%clk 0:01:29.3]} 21. Bxb4 {[%clk 0:01:19.9]} 21... Bc8 {[%clk 0:01:18.4]}
22. Be2 {[%clk 0:00:58.2]} 22... g6 {[%clk 0:01:09.1]} 23. Bc3 {[%clk
0:00:57.2]} 23... Rg8 {[%clk 0:01:05.9]} 24. Bxa6 {[%clk 0:00:55.1]} 24... Bxa6
{[%clk 0:01:04.7]} 25. Rxa6 {[%clk 0:00:56]} 25... Kd7 {[%clk 0:00:59.9]} 26.
Ra8 {[%clk 0:00:52.1]} 26... Ke6 {[%clk 0:00:55.8]} 27. b4 {[%clk 0:00:49.8]}
27... f6 {[%clk 0:00:55]} 28. b5 {[%clk 0:00:48.9]} 28... Kd7 {[%clk 0:00:46.7]}
29. Ra7+ {[%clk 0:00:42.2]} 29... Kc8 {[%clk 0:00:39.9]} 30. b6 {[%clk 0:00:37]}
30... e5 {[%clk 0:00:26.3]} 31. Ba5 {[%clk 0:00:22.7]} 31... Kb8 {[%clk
0:00:21.2]} 32. Rxh7 {[%clk 0:00:17.2]} 32... d5 {[%clk 0:00:17.2]} 33. b7
{[%clk 0:00:15.6]} 33... Bg7 {[%clk 0:00:13.2]} 34. h4 {[%clk 0:00:07.4]} 34...
Kxb7 {[%clk 0:00:13.1]} 35. h5 {[%clk 0:00:05.6]} 35... gxh5 {[%clk 0:00:14]}
36. Rxh5 {[%clk 0:00:05.9]} 36... Kc6 {[%clk 0:00:14.2]} 37. Bd2 {[%clk
0:00:05.7]} 37... Rb8 {[%clk 0:00:12.9]} 38. Rh7 {[%clk 0:00:05.7]} 38... Bf8
{[%clk 0:00:10.3]} 39. Be3 {[%clk 0:00:05.3]} 39... d4 {[%clk 0:00:09.2]} 40.
Bd2 {[%clk 0:00:04.5]} 40... Rb2 {[%clk 0:00:08.3]} 41. Ba5 {[%clk 0:00:04.8]}
41... Bd6 {[%clk 0:00:05.3]} 42. Rf7 {[%clk 0:00:03.6]} 42... Rxc2 {[%clk
0:00:05.4]} 43. Rxf6 {[%clk 0:00:04]} 43... Kd5 {[%clk 0:00:05.9]} 44. Rf3
{[%clk 0:00:03.8]} 44... Rc1+ {[%clk 0:00:06.2]} 45. Kh2 {[%clk 0:00:03.6]}
45... Ra1 {[%clk 0:00:06.9]} 0-1

[Event "Late-Titled-Tuesday-Blitz-July-09-2024"]
[Site "Chess.com"]
[Date "2024.07.09"]
[Round "2"]
[White "GHANDEEVAM2003"]
[Black "karinachess1"]
[Result "1-0"]
[WhiteElo "3178"]
[BlackElo "2663"]
[TimeControl "180+1"]
[EndTime "14:18:34 PDT"]
[Termination "GHANDEEVAM2003 won on time"]

1. c4 {[%clk 0:03:00.9]} 1... e6 {[%clk 0:02:59]} 2. Nf3 {[%clk 0:02:58.4]} 2...
Nf6 {[%clk 0:02:58.8]} 3. b3 {[%clk 0:02:56.8]} 3... d5 {[%clk 0:02:59.3]} 4.
Bb2 {[%clk 0:02:56.7]} 4... c5 {[%clk 0:02:59.7]} 5. e3 {[%clk 0:02:56.4]} 5...
Nc6 {[%clk 0:02:47.1]} 6. cxd5 {[%clk 0:02:56.6]} 6... Nxd5 {[%clk 0:02:47]} 7.
Bb5 {[%clk 0:02:54.8]} 7... Bd7 {[%clk 0:02:44.7]} 8. O-O {[%clk 0:02:54.5]}
8... Nf6 {[%clk 0:02:40.1]} 9. a4 {[%clk 0:02:40.2]} 9... Be7 {[%clk 0:02:40]}
10. Na3 {[%clk 0:02:40.4]} 10... O-O {[%clk 0:02:39.6]} 11. Rc1 {[%clk
0:02:39.8]} 11... Rc8 {[%clk 0:02:18.8]} 12. h3 {[%clk 0:02:39.5]} 12... Nd5
{[%clk 0:02:15]} 13. Bd3 {[%clk 0:02:27.6]} 13... Ncb4 {[%clk 0:02:11.6]} 14.
Bb1 {[%clk 0:02:27.6]} 14... Bf6 {[%clk 0:02:10.6]} 15. Ne5 {[%clk 0:02:26.1]}
15... Qe7 {[%clk 0:02:02.6]} 16. Nac4 {[%clk 0:02:17.8]} 16... Rfd8 {[%clk
0:01:54]} 17. f4 {[%clk 0:02:16.9]} 17... Be8 {[%clk 0:01:48.3]} 18. f5 {[%clk
0:02:06.4]} 18... Bxe5 {[%clk 0:01:10.4]} 19. Bxe5 {[%clk 0:02:05.6]} 19... f6
{[%clk 0:01:10.8]} 20. Bb2 {[%clk 0:01:58.1]} 20... e5 {[%clk 0:01:10.8]} 21.
Qe2 {[%clk 0:01:46.2]} 21... Bf7 {[%clk 0:01:08.6]} 22. Be4 {[%clk 0:01:41]}
22... Nb6 {[%clk 0:01:02.5]} 23. d3 {[%clk 0:01:36]} 23... Rd7 {[%clk 0:00:56]}
24. Rfd1 {[%clk 0:01:28.8]} 24... Rcd8 {[%clk 0:00:52.8]} 25. a5 {[%clk
0:01:28.2]} 25... N6d5 {[%clk 0:00:48]} 26. g4 {[%clk 0:01:21.7]} 26... b5
{[%clk 0:00:35.4]} 27. axb6 {[%clk 0:01:21.6]} 27... axb6 {[%clk 0:00:36.3]} 28.
g5 {[%clk 0:01:02.1]} 28... b5 {[%clk 0:00:36.4]} 29. gxf6 {[%clk 0:00:50]}
29... gxf6 {[%clk 0:00:36.3]} 30. Na3 {[%clk 0:00:50.5]} 30... Nc7 {[%clk
0:00:36]} 31. Kh2 {[%clk 0:00:45.4]} 31... Bxb3 {[%clk 0:00:33.3]} 32. Rd2
{[%clk 0:00:45.1]} 32... Kh8 {[%clk 0:00:30.5]} 33. Rg1 {[%clk 0:00:40.5]} 33...
Rg8 {[%clk 0:00:27]} 34. Rxg8+ {[%clk 0:00:38.4]} 34... Bxg8 {[%clk 0:00:27.9]}
35. Nb1 {[%clk 0:00:33.4]} 35... c4 {[%clk 0:00:20.1]} 36. d4 {[%clk 0:00:26.2]}
36... exd4 {[%clk 0:00:18.4]} 37. Bxd4 {[%clk 0:00:27.1]} 37... Ncd5 {[%clk
0:00:11]} 38. Qg4 {[%clk 0:00:18.9]} 38... Qg7 {[%clk 0:00:03.8]} 39. Qh4 {[%clk
0:00:19.1]} 39... Qf7 {[%clk 0:00:04]} 40. Rg2 {[%clk 0:00:18.3]} 40... Rd6
{[%clk 0:00:03.3]} 41. Nd2 {[%clk 0:00:15.8]} 41... Ra6 {[%clk 0:00:03.3]} 42.
Nf3 {[%clk 0:00:15]} 42... Nd3 {[%clk 0:00:02.7]} 43. Bxd5 {[%clk 0:00:14.4]}
1-0

[Event "Late-Titled-Tuesday-Blitz-July-09-2024"]
[Site "Chess.com"]
[Date "2024.07.09"]
[Round "2"]
[White "malakismayil"]
[Black "Ganziitoo"]
[Result "1-0"]
[WhiteElo "2521"]
[BlackElo "2317"]
[TimeControl "180+1"]
[EndTime "14:18:35 PDT"]
[Termination "malakismayil won by resignation"]

1. e4 {[%clk 0:02:57.6]} 1... d6 {[%clk 0:02:59.4]} 2. d4 {[%clk 0:02:56.2]}
2... Nf6 {[%clk 0:02:59.9]} 3. Nc3 {[%clk 0:02:56]} 3... Nbd7 {[%clk 0:03:00.6]}
4. Be3 {[%clk 0:02:55.9]} 4... e5 {[%clk 0:03:01.5]} 5. f3 {[%clk 0:02:54.8]}
5... c6 {[%clk 0:03:01.5]} 6. a4 {[%clk 0:02:53.3]} 6... Qa5 {[%clk 0:02:38.9]}
7. Bc4 {[%clk 0:02:48.3]} 7... d5 {[%clk 0:02:33.8]} 8. exd5 {[%clk 0:02:45.8]}
8... cxd5 {[%clk 0:02:34.7]} 9. Bb5 {[%clk 0:02:43.4]} 9... Bb4 {[%clk
0:02:31.5]} 10. Ne2 {[%clk 0:02:41.5]} 10... O-O {[%clk 0:02:20.5]} 11. O-O
{[%clk 0:02:39.4]} 11... exd4 {[%clk 0:02:15.2]} 12. Bxd4 {[%clk 0:02:40.3]}
12... Rd8 {[%clk 0:01:57.1]} 13. Kh1 {[%clk 0:02:30.3]} 13... a6 {[%clk
0:01:53.9]} 14. Bd3 {[%clk 0:02:25.5]} 14... Bc5 {[%clk 0:01:50.7]} 15. Re1
{[%clk 0:02:14.2]} 15... Bxd4 {[%clk 0:01:50.8]} 16. Nxd4 {[%clk 0:02:15.1]}
16... Nc5 {[%clk 0:01:51.1]} 17. Bf1 {[%clk 0:02:09.5]} 17... Ne6 {[%clk
0:01:46.6]} 18. Nb3 {[%clk 0:02:07.8]} 18... Qc7 {[%clk 0:01:44.1]} 19. Ne2
{[%clk 0:02:04.8]} 19... Bd7 {[%clk 0:01:34.4]} 20. Ned4 {[%clk 0:01:59.8]}
20... Rac8 {[%clk 0:01:33.5]} 21. c3 {[%clk 0:01:59.5]} 21... Nc5 {[%clk
0:01:29.1]} 22. Nxc5 {[%clk 0:01:58.7]} 22... Qxc5 {[%clk 0:01:30]} 23. Bd3
{[%clk 0:01:59]} 23... Re8 {[%clk 0:01:25.4]} 24. Qb3 {[%clk 0:01:58]} 24... Bc6
{[%clk 0:01:22.8]} 25. Bf5 {[%clk 0:01:54.4]} 25... Rcd8 {[%clk 0:01:19.1]} 26.
Qc2 {[%clk 0:01:38.6]} 26... g6 {[%clk 0:01:18.3]} 27. Bd3 {[%clk 0:01:37.6]}
27... Kg7 {[%clk 0:01:17.7]} 28. b4 {[%clk 0:01:35.4]} 28... Qd6 {[%clk
0:01:13.3]} 29. b5 {[%clk 0:01:31.5]} 29... axb5 {[%clk 0:01:09.9]} 30. axb5
{[%clk 0:01:31.5]} 30... Bd7 {[%clk 0:01:10.5]} 31. Qd2 {[%clk 0:01:31.1]} 31...
Rxe1+ {[%clk 0:01:06.2]} 32. Rxe1 {[%clk 0:01:30]} 32... Rc8 {[%clk 0:00:59.1]}
33. Rc1 {[%clk 0:01:19.2]} 33... Qe7 {[%clk 0:00:50]} 34. Qg5 {[%clk 0:01:13.5]}
34... h6 {[%clk 0:00:49.9]} 35. Qf4 {[%clk 0:01:12.7]} 35... Qa3 {[%clk
0:00:46.5]} 36. Qd2 {[%clk 0:01:09.6]} 36... Re8 {[%clk 0:00:38.1]} 37. Re1
{[%clk 0:00:56.4]} 37... Rxe1+ {[%clk 0:00:35.5]} 38. Qxe1 {[%clk 0:00:57.3]}
38... Qd6 {[%clk 0:00:30]} 39. h3 {[%clk 0:00:53.2]} 39... Nh5 {[%clk
0:00:29.9]} 40. Qd2 {[%clk 0:00:51.1]} 40... Nf4 {[%clk 0:00:24.6]} 41. Bf1
{[%clk 0:00:48.1]} 41... Qe5 {[%clk 0:00:22.3]} 42. Nb3 {[%clk 0:00:41.4]} 42...
Qg5 {[%clk 0:00:15.3]} 43. Qd4+ {[%clk 0:00:38.2]} 43... Kg8 {[%clk 0:00:11.7]}
44. Nc5 {[%clk 0:00:38.1]} 44... Ne6 {[%clk 0:00:07.6]} 45. Nxe6 {[%clk
0:00:35.5]} 45... Bxe6 {[%clk 0:00:08.5]} 46. Kh2 {[%clk 0:00:30.7]} 46... Qd8
{[%clk 0:00:07.9]} 47. Bd3 {[%clk 0:00:30.2]} 47... Qc7+ {[%clk 0:00:08.3]} 48.
Kh1 {[%clk 0:00:30.1]} 48... h5 {[%clk 0:00:08]} 49. Bc2 {[%clk 0:00:28.1]}
49... b6 {[%clk 0:00:08.4]} 50. Bb3 {[%clk 0:00:27.9]} 50... Qc5 {[%clk
0:00:08.7]} 51. Qxc5 {[%clk 0:00:27.3]} 51... bxc5 {[%clk 0:00:09.6]} 52. b6
{[%clk 0:00:27.7]} 1-0

[Event "Late-Titled-Tuesday-Blitz-July-09-2024"]
[Site "Chess.com"]
[Date "2024.07.09"]
[Round "2"]
[White "ValeriyGrinev"]
[Black "AsaHoffmann"]
[Result "1-0"]
[WhiteElo "2672"]
[BlackElo "2389"]
[TimeControl "180+1"]
[EndTime "14:18:40 PDT"]
[Termination "ValeriyGrinev won on time"]

1. d4 {[%clk 0:03:00.9]} 1... Nf6 {[%clk 0:02:57.2]} 2. c4 {[%clk 0:03:00.8]}
2... c5 {[%clk 0:02:55.3]} 3. Nf3 {[%clk 0:02:59.8]} 3... cxd4 {[%clk
0:02:53.1]} 4. Nxd4 {[%clk 0:03:00.7]} 4... e5 {[%clk 0:02:51.4]} 5. Nb5 {[%clk
0:03:00]} 5... d5 {[%clk 0:02:51.1]} 6. cxd5 {[%clk 0:03:00.9]} 6... Bb4+ {[%clk
0:02:48]} 7. N5c3 {[%clk 0:03:01.8]} 7... Na6 {[%clk 0:02:29.1]} 8. a3 {[%clk
0:02:58.3]} 8... Bc5 {[%clk 0:02:27.7]} 9. g3 {[%clk 0:02:52.1]} 9... Qb6 {[%clk
0:02:21.5]} 10. e3 {[%clk 0:02:49.6]} 10... Bg4 {[%clk 0:02:20.1]} 11. Be2
{[%clk 0:02:46.1]} 11... Bh3 {[%clk 0:02:19.7]} 12. Na4 {[%clk 0:02:43.8]} 12...
Qd8 {[%clk 0:02:13.4]} 13. Bxa6 {[%clk 0:02:40.3]} 13... bxa6 {[%clk 0:01:59.7]}
14. Nxc5 {[%clk 0:02:40.1]} 14... Rc8 {[%clk 0:01:52.3]} 15. b4 {[%clk
0:02:28.4]} 15... O-O {[%clk 0:01:48.3]} 16. Nc3 {[%clk 0:02:24.5]} 16... a5
{[%clk 0:01:47.4]} 17. Bb2 {[%clk 0:02:19.7]} 17... axb4 {[%clk 0:01:45.8]} 18.
axb4 {[%clk 0:02:20.6]} 18... Re8 {[%clk 0:01:37.8]} 19. e4 {[%clk 0:02:16.8]}
19... Qb6 {[%clk 0:01:33.1]} 20. Qd2 {[%clk 0:02:04.6]} 20... Qxb4 {[%clk
0:01:31]} 21. Nd3 {[%clk 0:02:02.4]} 21... Qd4 {[%clk 0:01:26.8]} 22. f3 {[%clk
0:02:00]} 22... Rb8 {[%clk 0:01:14.1]} 23. Ne2 {[%clk 0:01:49.5]} 23... Qb6
{[%clk 0:01:05.1]} 24. Bxe5 {[%clk 0:01:44.2]} 24... Rbd8 {[%clk 0:01:01.5]} 25.
Bd4 {[%clk 0:01:38.2]} 25... Qb5 {[%clk 0:00:48.1]} 26. Rxa7 {[%clk 0:01:24.8]}
26... Bg2 {[%clk 0:00:45]} 27. Nc3 {[%clk 0:01:19.4]} 27... Qc4 {[%clk
0:00:43.3]} 28. Nb2 {[%clk 0:01:06.7]} 28... Qb4 {[%clk 0:00:36]} 29. Ra4 {[%clk
0:01:04.6]} 29... Qb3 {[%clk 0:00:31.5]} 30. Qxg2 {[%clk 0:01:03.5]} 30... Nxd5
{[%clk 0:00:29.1]} 31. Nxd5 {[%clk 0:00:51.7]} 31... Rxd5 {[%clk 0:00:28.5]} 32.
O-O {[%clk 0:00:43.7]} 32... Rb5 {[%clk 0:00:27.5]} 33. Qf2 {[%clk 0:00:37]}
33... f6 {[%clk 0:00:24.3]} 34. Ra7 {[%clk 0:00:35]} 34... Rd8 {[%clk
0:00:21.4]} 35. Nd1 {[%clk 0:00:28.7]} 35... Qc4 {[%clk 0:00:18.9]} 36. Be3
{[%clk 0:00:27]} 36... Rb1 {[%clk 0:00:16.8]} 37. Nb2 {[%clk 0:00:22.2]} 37...
Rxf1+ {[%clk 0:00:15.2]} 38. Qxf1 {[%clk 0:00:23.1]} 38... Qc3 {[%clk
0:00:14.6]} 39. Qf2 {[%clk 0:00:22.6]} 39... h6 {[%clk 0:00:10.2]} 40. Ra1
{[%clk 0:00:21.7]} 40... Rb8 {[%clk 0:00:09.1]} 41. Rb1 {[%clk 0:00:21.7]} 41...
Rc8 {[%clk 0:00:08.1]} 42. Kg2 {[%clk 0:00:20.8]} 42... Rd8 {[%clk 0:00:06.6]}
43. Re1 {[%clk 0:00:19.9]} 43... Rb8 {[%clk 0:00:06]} 44. Re2 {[%clk 0:00:20]}
44... Rb3 {[%clk 0:00:04.9]} 45. Nd1 {[%clk 0:00:19.7]} 45... Qd3 {[%clk
0:00:04.6]} 46. Rd2 {[%clk 0:00:19.8]} 46... Qb1 {[%clk 0:00:04.5]} 47. Qe2
{[%clk 0:00:19.9]} 47... Kh7 {[%clk 0:00:04.2]} 48. Nf2 {[%clk 0:00:20]} 48...
Qa1 {[%clk 0:00:03]} 49. Rd1 {[%clk 0:00:19.2]} 49... Qa4 {[%clk 0:00:01.9]} 50.
Qc2 {[%clk 0:00:17.8]} 50... Qb5 {[%clk 0:00:01]} 51. Re1 {[%clk 0:00:16.5]}
51... Rb2 {[%clk 0:00:01]} 52. Qd1 {[%clk 0:00:14]} 52... Qb4 {[%clk 0:00:01]}
53. Re2 {[%clk 0:00:13.4]} 1-0

[Event "Late-Titled-Tuesday-Blitz-July-09-2024"]
[Site "Chess.com"]
[Date "2024.07.09"]
[Round "2"]
[White "Evandro_Barbosa"]
[Black "JoJoZP"]
[Result "1/2-1/2"]
[WhiteElo "2762"]
[BlackElo "2521"]
[TimeControl "180+1"]
[EndTime "14:18:44 PDT"]
[Termination "Game drawn by repetition"]

1. e4 {[%clk 0:03:00.9]} 1... c5 {[%clk 0:02:59.9]} 2. Nf3 {[%clk 0:03:00.7]}
2... d6 {[%clk 0:02:59.7]} 3. d4 {[%clk 0:03:01]} 3... cxd4 {[%clk 0:03:00.6]}
4. Nxd4 {[%clk 0:03:01.2]} 4... Nf6 {[%clk 0:03:01.3]} 5. Nc3 {[%clk 0:03:01.5]}
5... a6 {[%clk 0:03:02]} 6. Be2 {[%clk 0:03:01.8]} 6... Nbd7 {[%clk 0:03:01]} 7.
O-O {[%clk 0:03:01.6]} 7... g6 {[%clk 0:03:00.9]} 8. a4 {[%clk 0:03:01.1]} 8...
Bg7 {[%clk 0:02:59.9]} 9. Re1 {[%clk 0:03:01.7]} 9... O-O {[%clk 0:03:00.2]} 10.
Bf1 {[%clk 0:03:02.3]} 10... Qc7 {[%clk 0:02:57.9]} 11. Nd5 {[%clk 0:03:02.5]}
11... Qd8 {[%clk 0:02:53.4]} 12. Bg5 {[%clk 0:02:59.8]} 12... h6 {[%clk
0:02:51.4]} 13. Bh4 {[%clk 0:02:59.5]} 13... g5 {[%clk 0:02:45.8]} 14. Bg3
{[%clk 0:02:55.7]} 14... Ne5 {[%clk 0:02:40.9]} 15. c4 {[%clk 0:02:48.7]} 15...
Bd7 {[%clk 0:02:30.8]} 16. a5 {[%clk 0:02:48.4]} 16... Bc6 {[%clk 0:02:20.7]}
17. Nf5 {[%clk 0:02:47.3]} 17... e6 {[%clk 0:02:02.5]} 18. Nxg7 {[%clk
0:02:28.4]} 18... exd5 {[%clk 0:01:55.1]} 19. Nf5 {[%clk 0:02:24.8]} 19... dxe4
{[%clk 0:01:44.9]} 20. Nxh6+ {[%clk 0:02:20.8]} 20... Kh7 {[%clk 0:01:42.7]} 21.
Nf5 {[%clk 0:02:21.3]} 21... Qd7 {[%clk 0:01:24.9]} 22. Nxd6 {[%clk 0:02:20.1]}
22... Ng6 {[%clk 0:01:23.1]} 23. b4 {[%clk 0:02:14.9]} 23... Rad8 {[%clk
0:01:22.2]} 24. b5 {[%clk 0:02:14.8]} 24... axb5 {[%clk 0:01:22]} 25. cxb5
{[%clk 0:02:15]} 25... Bd5 {[%clk 0:01:22.7]} 26. Qd4 {[%clk 0:02:14.9]} 26...
Qe6 {[%clk 0:01:21]} 27. Qb6 {[%clk 0:02:03.5]} 27... Nh5 {[%clk 0:01:13.3]} 28.
Nxe4 {[%clk 0:01:44.3]} 28... Qxb6 {[%clk 0:01:04.1]} 29. axb6 {[%clk
0:01:42.7]} 29... Nxg3 {[%clk 0:01:03.3]} 30. hxg3 {[%clk 0:01:38.8]} 30... Bxe4
{[%clk 0:01:02.5]} 31. Rxe4 {[%clk 0:01:38.5]} 31... Rd6 {[%clk 0:01:03.4]} 32.
Rc1 {[%clk 0:01:30.3]} 32... Rxb6 {[%clk 0:00:46]} 33. Rc7 {[%clk 0:01:30.7]}
33... Kg7 {[%clk 0:00:40.6]} 34. Bc4 {[%clk 0:01:30.6]} 34... Kf6 {[%clk
0:00:38]} 35. Rd4 {[%clk 0:01:13.7]} 35... Ne5 {[%clk 0:00:32.9]} 36. Be2 {[%clk
0:01:14.1]} 36... Ra8 {[%clk 0:00:27.7]} 37. f4 {[%clk 0:01:14.2]} 37... Ra1+
{[%clk 0:00:24.4]} 38. Kf2 {[%clk 0:01:13.8]} 38... gxf4 {[%clk 0:00:18.3]} 39.
gxf4 {[%clk 0:01:13.9]} 39... Ng6 {[%clk 0:00:18.4]} 40. g4 {[%clk 0:01:13.9]}
40... Ra2 {[%clk 0:00:11.8]} 41. g5+ {[%clk 0:01:12.8]} 41... Kg7 {[%clk
0:00:11.2]} 42. f5 {[%clk 0:00:54]} 42... Rxb5 {[%clk 0:00:06.9]} 43. fxg6
{[%clk 0:00:45.4]} 43... Kxg6 {[%clk 0:00:07.8]} 44. Ke3 {[%clk 0:00:41.9]}
44... Re5+ {[%clk 0:00:07.5]} 45. Kf4 {[%clk 0:00:33.5]} 45... Raxe2 {[%clk
0:00:01.7]} 46. Rd6+ {[%clk 0:00:34.4]} 46... Re6 {[%clk 0:00:01.9]} 47. Rxe6+
{[%clk 0:00:28.4]} 47... fxe6 {[%clk 0:00:02]} 48. Rxb7 {[%clk 0:00:27.5]} 48...
e5+ {[%clk 0:00:02.6]} 49. Kg4 {[%clk 0:00:26.5]} 49... Re4+ {[%clk 0:00:01.8]}
50. Kf3 {[%clk 0:00:26.3]} 50... Rf4+ {[%clk 0:00:01.9]} 51. Ke3 {[%clk
0:00:26.8]} 51... Kxg5 {[%clk 0:00:02.8]} 52. Rg7+ {[%clk 0:00:26.3]} 52... Kf5
{[%clk 0:00:03.1]} 53. Ra7 {[%clk 0:00:27]} 53... Rb4 {[%clk 0:00:02.4]} 54.
Rf7+ {[%clk 0:00:26.1]} 54... Ke6 {[%clk 0:00:01.7]} 55. Ra7 {[%clk 0:00:27]}
55... Rd4 {[%clk 0:00:01.9]} 56. Ra6+ {[%clk 0:00:26.7]} 56... Kd5 {[%clk
0:00:02.6]} 57. Ra5+ {[%clk 0:00:27.2]} 57... Ke6 {[%clk 0:00:03.3]} 58. Ra6+
{[%clk 0:00:27.8]} 58... Kd5 {[%clk 0:00:04]} 59. Ra5+ {[%clk 0:00:28.4]} 59...
Ke6 {[%clk 0:00:04.8]} 60. Ra6+ {[%clk 0:00:29.1]} 1/2-1/2

[Event "Late-Titled-Tuesday-Blitz-July-09-2024"]
[Site "Chess.com"]
[Date "2024.07.09"]
[Round "2"]
[White "glucolisis04"]
[Black "zsoltkorpics"]
[Result "0-1"]
[WhiteElo "2295"]
[BlackElo "2510"]
[TimeControl "180+1"]
[EndTime "14:18:45 PDT"]
[Termination "zsoltkorpics won on time"]

1. d4 {[%clk 0:03:00.9]} 1... Nf6 {[%clk 0:02:59.8]} 2. c4 {[%clk 0:03:01.1]}
2... e6 {[%clk 0:03:00.4]} 3. Nc3 {[%clk 0:03:01.3]} 3... Bb4 {[%clk 0:03:00.9]}
4. e3 {[%clk 0:03:01.7]} 4... O-O {[%clk 0:03:00.3]} 5. Ne2 {[%clk 0:03:01.6]}
5... c5 {[%clk 0:02:58.5]} 6. a3 {[%clk 0:03:00.9]} 6... Bxc3+ {[%clk
0:02:57.8]} 7. Nxc3 {[%clk 0:03:01.5]} 7... d5 {[%clk 0:02:51.7]} 8. dxc5 {[%clk
0:03:01.4]} 8... Qc7 {[%clk 0:02:14.4]} 9. b4 {[%clk 0:02:57.6]} 9... dxc4
{[%clk 0:02:14.5]} 10. Bxc4 {[%clk 0:02:56.8]} 10... b6 {[%clk 0:02:12.8]} 11.
Qe2 {[%clk 0:02:38.9]} 11... bxc5 {[%clk 0:02:12.2]} 12. O-O {[%clk 0:02:38.4]}
12... Bb7 {[%clk 0:02:10]} 13. Bb2 {[%clk 0:02:29.6]} 13... Nbd7 {[%clk
0:02:06.9]} 14. Rac1 {[%clk 0:02:23.4]} 14... Rac8 {[%clk 0:01:52.5]} 15. b5
{[%clk 0:02:01.3]} 15... Ne5 {[%clk 0:01:48.6]} 16. Ba2 {[%clk 0:01:49]} 16...
c4 {[%clk 0:01:43.1]} 17. Bb1 {[%clk 0:01:29]} 17... Neg4 {[%clk 0:01:28.4]} 18.
f4 {[%clk 0:01:18.6]} 18... Rfd8 {[%clk 0:01:07.8]} 19. h3 {[%clk 0:01:14.6]}
19... Nh6 {[%clk 0:01:07.4]} 20. g4 {[%clk 0:00:46.8]} 20... Nd5 {[%clk
0:00:36]} 21. Ne4 {[%clk 0:00:46.9]} 21... f5 {[%clk 0:00:31.2]} 22. Ng5 {[%clk
0:00:44.4]} 22... Re8 {[%clk 0:00:25.2]} 23. Be5 {[%clk 0:00:27.3]} 23... Qb6
{[%clk 0:00:25.2]} 24. Bd4 {[%clk 0:00:21.4]} 24... Qxb5 {[%clk 0:00:25.2]} 25.
Ba2 {[%clk 0:00:09.3]} 25... Ba6 {[%clk 0:00:20.5]} 26. Rb1 {[%clk 0:00:09.1]}
26... Qa4 {[%clk 0:00:20]} 27. Qb2 {[%clk 0:00:06.6]} 27... c3 {[%clk
0:00:19.4]} 28. Qb3 {[%clk 0:00:03.1]} 28... Qxb3 {[%clk 0:00:19]} 29. Bxb3
{[%clk 0:00:04]} 29... c2 {[%clk 0:00:16.1]} 30. Rbc1 {[%clk 0:00:03.3]} 30...
Bxf1 {[%clk 0:00:16.2]} 31. Kxf1 {[%clk 0:00:04.2]} 31... Nf7 {[%clk 0:00:14.8]}
32. Nf3 {[%clk 0:00:03.6]} 32... fxg4 {[%clk 0:00:14.7]} 33. hxg4 {[%clk
0:00:04.5]} 33... Nd6 {[%clk 0:00:15.3]} 34. Ne5 {[%clk 0:00:04.5]} 34... Ne4
{[%clk 0:00:15]} 35. Bxc2 {[%clk 0:00:03]} 35... Nd2+ {[%clk 0:00:10.7]} 36. Ke2
{[%clk 0:00:02.7]} 36... Nc4 {[%clk 0:00:11.4]} 37. Rd1 {[%clk 0:00:01]} 37...
Nxe5 {[%clk 0:00:11.1]} 38. Bxe5 {[%clk 0:00:01]} 38... Rxc2+ {[%clk 0:00:11]}
39. Kd3 {[%clk 0:00:01.9]} 39... Ra2 {[%clk 0:00:11.1]} 40. Rb1 {[%clk
0:00:02.2]} 40... Rxa3+ {[%clk 0:00:11.6]} 41. Ke4 {[%clk 0:00:02]} 41... Rxe3+
{[%clk 0:00:12.2]} 42. Kd4 {[%clk 0:00:02]} 42... Rg3 {[%clk 0:00:12.7]} 43. Rb7
{[%clk 0:00:02.2]} 43... Ne7 {[%clk 0:00:12.7]} 44. g5 {[%clk 0:00:02.1]} 44...
Nc6+ {[%clk 0:00:13.1]} 45. Ke4 {[%clk 0:00:03]} 45... Nxe5 {[%clk 0:00:14]} 46.
Kxe5 {[%clk 0:00:02.9]} 46... Re3+ {[%clk 0:00:14.4]} 47. Kd6 {[%clk 0:00:03.1]}
47... Ra3 {[%clk 0:00:14.8]} 48. Rb5 {[%clk 0:00:01.7]} 48... Rd3+ {[%clk
0:00:14.2]} 49. Ke5 {[%clk 0:00:01.6]} 49... a6 {[%clk 0:00:14.8]} 50. Rb6
{[%clk 0:00:01.3]} 50... Rd5+ {[%clk 0:00:15.5]} 0-1